bitfinex-derivatives/quotes_BNBF0:USTF0_20250316
["timestamp","ask_amount","ask_price","bid_price","bid_amount"]
[1742143931434,0.33019101,605.71,604.52,0.33084099]
[1742143931638,0.28057114,605.7,604.52,0.33084099]
[1742143935244,0.33019101,605.71,604.52,0.33084099]
[1742143935245,0.28057114,605.69,604.52,0.33084099]
[1742143935544,0.28057114,605.68,604.52,0.33084099]
[1742143935743,0.28057114,605.7,604.52,0.33084099]
[1742143935937,0.28057114,605.69,604.52,0.33084099]
[1742143936151,0.28057114,605.7,604.52,0.33084099]
[1742143936344,0.33019101,605.71,604.52,0.33084099]
[1742143936639,0.28069847,605.7,604.52,0.33084099]
[1742143937242,0.33020191,605.69,604.52,0.33084099]
[1742143937447,0.28069847,605.68,604.52,0.33084099]
[1742143937646,0.33021282,605.67,604.52,0.33084099]
[1742143937846,0.28069847,605.66,604.52,0.33084099]
[1742143938248,0.33022372,605.65,604.52,0.33084099]
[1742143938446,0.28069847,605.64,604.52,0.33084099]
[1742143945449,0.33022372,605.65,604.52,0.33084099]
[1742143945646,0.28072729,605.64,604.52,0.33084099]
[1742143948946,0.33022372,605.65,604.52,0.33084099]
[1742143949144,0.28073341,605.64,604.52,0.33084099]
[1742143952062,0.61096258,605.64,604.52,0.72584099]
[1742143952267,0.28073341,605.63,604.52,0.72584099]
[1742143954764,0.28073308,605.62,604.52,0.72584099]
[1742143954962,0.28073308,605.63,604.52,0.72584099]
[1742143955164,0.28073308,605.62,604.52,0.72584099]
[1742143955365,0.28073308,605.63,604.52,0.72584099]
[1742143955565,0.28073308,605.62,604.52,0.72584099]
[1742143955769,0.28073308,605.61,604.52,0.72584099]
[1742143956070,0.28073308,605.6,604.52,0.72584099]
[1742143956268,0.28073308,605.63,604.52,0.72584099]
[1742143956465,0.33022917,605.64,604.52,0.72584099]
[1742143956771,0.28073801,605.63,604.52,0.72584099]
[1742143957872,0.28073801,605.62,604.52,0.72584099]
[1742143958071,0.28073801,605.63,604.52,0.72584099]
[1742143958270,0.28073801,605.62,604.52,0.72584099]
[1742143958671,0.28073801,605.63,604.52,0.72584099]
[1742143958866,0.28073801,605.62,604.52,0.72584099]
[1742143959172,0.28073801,605.61,604.52,0.72584099]
[1742143959371,0.28073801,605.63,604.52,0.72584099]
[1742143959567,0.33022917,605.64,604.52,0.72584099]
[1742143959568,0.28073801,605.62,604.52,0.72584099]
[1742143959872,0.28073801,605.61,604.52,0.72584099]
[1742143960072,0.28073801,605.63,604.52,0.72584099]
[1742143963370,0.33024008,605.62,604.52,0.72584099]
[1742143963571,0.28073801,605.61,604.52,0.72584099]
[1742143963777,0.33025099,605.6,604.52,0.72584099]
[1742143963978,0.28077884,605.59,604.52,0.72584099]
[1742143964179,0.33026189,605.58,604.52,0.72584099]
[1742143964379,0.28077884,605.57,604.52,0.395]
[1742143964579,0.3302728,605.56,604.52,0.395]
[1742143964776,0.28077884,605.55,604.52,0.395]
[1742143964976,0.33028371,605.54,604.52,0.395]
[1742143965172,0.28077884,605.53,604.52,0.395]
[1742143965773,0.28078959,605.52,604.52,0.395]
[1742143965982,0.33030007,605.51,604.52,0.395]
[1742143966174,0.28078959,605.5,604.52,0.395]
[1742143968780,0.33031098,605.49,604.52,0.395]
[1742143968980,0.28078959,605.48,604.52,0.395]
[1742143969176,0.33032189,605.47,604.52,0.395]
[1742143969586,0.28081881,605.46,604.52,0.395]
[1742143971179,0.33032189,605.47,604.52,0.395]
[1742143971379,0.28085967,605.46,604.52,0.395]
[1742143973680,0.33033281,605.45,604.52,0.395]
[1742143973884,0.28085967,605.44,604.52,0.395]
[1742143974084,0.33034372,605.43,604.52,0.395]
[1742143974284,0.28085967,605.42,604.52,0.395]
[1742143974484,0.33035463,605.41,604.52,0.395]
[1742143974987,0.28085102,605.4,604.52,0.395]
[1742143975282,0.61121111,605.4,604.52,0.395]
[1742143975484,0.28085102,605.39,604.52,0.395]
[1742143976484,0.33036009,605.4,604.52,0.395]
[1742143976687,0.28085229,605.38,604.52,0.395]
[1742143976889,0.28085229,605.39,604.52,0.395]
[1742143977080,0.28085229,605.38,604.52,0.395]
[1742143977487,0.28085229,605.37,604.52,0.395]
[1742143977683,0.28085229,605.39,604.52,0.395]
[1742143977881,0.28085229,605.36,604.52,0.395]
[1742143978086,0.28085229,605.35,604.52,0.395]
[1742143978281,0.28085229,605.39,604.52,0.395]
[1742143978489,0.28085229,605.34,604.52,0.395]
[1742143978685,0.28085229,605.33,604.52,0.395]
[1742143978885,0.28085229,605.39,604.52,0.395]
[1742143979087,0.61124564,605.38,604.52,0.395]
[1742143979391,0.6112511,605.37,604.52,0.395]
[1742143979590,0.28087464,605.36,604.52,0.395]
[1742143979792,0.33038737,605.35,604.52,0.395]
[1742143980091,0.28087464,605.34,604.52,0.395]
[1742143981094,0.28087464,605.33,604.52,0.395]
[1742143981284,0.28087464,605.32,604.52,0.395]
[1742143981591,0.28087464,605.31,604.52,0.395]
[1742143981997,0.28087464,605.3,604.52,0.395]
[1742143982193,0.28087464,605.29,604.52,0.395]
[1742143982394,0.28087464,605.28,604.52,0.395]
[1742143982596,0.28087464,605.27,604.52,0.395]
[1742143982796,0.28087464,605.26,604.52,0.395]
[1742143982997,0.28087464,605.25,604.52,0.395]
[1742143983198,2.52099649,605.17,604.52,0.395]
[1742143983700,0.2811102,605.16,604.52,0.395]
[1742143984000,0.2811102,605.15,604.52,0.395]
[1742143984299,0.2811102,605.14,604.52,0.395]
[1742143984496,0.2811102,605.13,604.52,0.395]
[1742143984693,0.2811102,605.12,604.52,0.395]
[1742143984898,0.2811102,605.11,604.52,0.395]
[1742143985092,0.2811102,605.1,604.52,0.395]
[1742143985297,0.2811102,605.09,604.52,0.395]
[1742143985600,0.28115093,605.08,604.52,0.395]
[1742143985894,0.28115093,605.07,604.52,0.395]
[1742143986098,0.28115093,605.06,604.52,0.395]
[1742143986304,0.28115093,605.05,604.52,0.395]
[1742143986601,2.5020455,605.16,604.52,0.395]
[1742143986602,0.28115093,605.04,604.52,0.395]
[1742143986797,0.28115093,605.23,604.52,0.395]
[1742143987002,0.28818682,605.13,604.52,0.395]
[1742143987301,0.28115093,605.12,604.52,0.395]
[1742143987601,0.28115122,605.11,604.52,0.395]
[1742143987804,0.28115122,605.1,604.52,0.395]
[1742143988002,0.28115122,605.09,604.52,0.395]
[1742143988203,0.28115122,605.08,604.52,0.395]
[1742143988402,0.28115122,605.07,604.52,0.395]
[1742143988803,0.28115122,605.06,604.52,0.395]
[1742143988996,0.28115122,605.05,604.52,0.395]
[1742143989402,0.28115648,605.04,604.52,0.395]
[1742143989602,0.28115648,605.03,604.52,0.395]
[1742143989798,0.28115648,605.02,604.52,0.395]
[1742143989996,0.28115648,605.01,604.52,0.395]
[1742143990203,0.28115648,605.05,604.52,0.395]
[1742143990399,0.28817609,605.06,604.52,0.395]
[1742143990400,0.28115648,605.04,604.52,0.395]
[1742143990601,0.28115648,605.03,604.52,0.395]
[1742143990796,0.28115648,605.02,604.52,0.395]
[1742143991199,0.28817609,605.06,604.52,0.395]
[1742143991200,0.28115648,605.01,604.52,0.395]
[1742143991403,0.28115648,605.05,604.52,0.395]
[1742143991605,0.61171313,605.04,604.52,0.395]
[1742143991797,0.28115648,605.03,604.52,0.395]
[1742143992602,0.33055665,605.04,604.52,0.395]
[1742143992799,0.28117218,605.03,604.52,0.395]
[1742143996403,0.33055665,605.04,604.52,0.395]
[1742143996600,0.2811742,605.03,604.52,0.395]
[1742143997200,0.2811742,605.03,603.14,0.28821189]
[1742143997406,0.2811742,605.03,603.15,0.30433598]
[1742143997606,0.2811742,605.03,603.14,0.28821189]
[1742143997807,0.2811742,605.03,603.15,0.30432249]
[1742143998109,0.2811742,605.03,603.14,0.28821189]
[1742143998303,0.33055665,605.04,603.14,0.28821189]
[1742143998509,0.28114484,605.03,603.15,0.30432418]
[1742144001705,0.28114484,605.02,603.15,0.30432418]
[1742144001906,0.28114484,605.01,603.16,0.30432418]
[1742144002111,0.28114484,605.0,603.15,0.541]
[1742144002307,0.28114484,604.99,603.16,0.30432418]
[1742144002513,0.28114484,604.98,603.16,0.30432418]
[1742144002812,0.28114484,604.97,603.16,0.30432418]
[1742144003018,0.28114484,605.01,603.16,0.30432418]
[1742144003211,0.28114484,605.0,603.16,0.30432418]
[1742144003415,0.28822143,605.02,603.15,0.541]
[1742144003617,0.28116173,605.01,603.16,0.30434144]
[1742144003814,0.28116173,605.0,603.16,0.30434144]
[1742144004018,0.28116173,604.99,603.16,0.30434144]
[1742144004215,0.28116173,604.98,603.16,0.30434144]
[1742144004412,0.28116173,604.97,603.16,0.30434144]
[1742144004613,0.28116173,604.96,603.16,0.30434144]
[1742144004814,0.28116173,604.95,603.16,0.30434144]
[1742144005017,0.28116173,605.03,603.16,0.30434144]
[1742144005216,0.28116173,605.02,603.16,0.30434144]
[1742144005416,0.28106556,605.01,603.17,0.30435806]
[1742144005618,0.28106556,605.0,603.16,0.30435806]
[1742144005819,0.28106556,604.99,603.17,0.30435806]
[1742144006117,0.28106556,604.98,603.18,0.30435806]
[1742144006418,0.28106556,604.97,603.19,0.30435806]
[1742144006617,0.28106556,604.96,603.19,0.30435806]
[1742144006918,0.28106556,604.95,603.2,0.30435806]
[1742144007117,0.28106556,604.94,603.16,0.30435806]
[1742144007318,0.28086967,604.93,603.17,0.30439547]
[1742144007517,0.28086967,604.92,603.18,0.30439547]
[1742144007817,0.28086967,604.91,603.19,0.30439547]
[1742144008118,0.28086967,604.9,603.15,0.541]
[1742144008318,0.28086967,605.03,603.16,0.30441111]
[1742144008521,0.28086967,605.02,603.16,0.30441111]
[1742144008817,0.28086967,605.01,603.15,0.541]
[1742144009017,0.28086967,605.03,603.15,0.541]
[1742144009215,0.28086967,605.02,603.15,0.541]
[1742144009417,0.28086967,605.03,603.15,0.541]
[1742144009618,0.28086967,605.02,603.15,0.541]
[1742144009816,0.28086967,605.03,603.15,0.541]
[1742144010021,0.28086967,605.02,603.15,0.541]
[1742144010217,0.33057851,605.0,603.15,0.541]
[1742144010414,0.28086967,604.99,603.15,0.541]
[1742144010617,0.3305949,604.97,603.15,0.541]
[1742144010818,0.28086967,604.96,603.15,0.87259247]
[1742144011424,0.3306113,604.94,603.16,0.33158697]
[1742144011619,0.28086967,604.93,603.16,0.33158697]
[1742144012322,0.33062769,604.91,603.16,0.33158697]
[1742144012715,0.28086967,604.9,603.16,0.33158697]
[1742144013116,0.33064409,604.88,603.16,0.33158697]
[1742144013316,0.28086967,604.87,603.16,0.33158697]
[1742144013520,0.33066049,604.85,603.16,0.33158697]
[1742144013723,0.28086967,604.84,603.16,0.33158697]
[1742144014025,0.33067689,604.82,603.16,0.33158697]
[1742144014323,0.28086967,604.81,603.17,0.3043951]
[1742144014523,0.33068783,604.8,603.18,0.33157598]
[1742144014723,0.28086967,604.79,603.18,0.33157598]
[1742144014923,0.33069876,604.78,603.18,0.33157598]
[1742144015121,0.28086967,604.77,603.18,0.33157598]
[1742144015324,0.3307097,604.76,603.18,0.33157598]
[1742144015520,0.28086967,604.75,603.18,0.33157598]
[1742144015718,0.33072064,604.74,603.18,0.33157598]
[1742144015922,0.28086967,604.73,603.18,0.33157598]
[1742144016123,0.33073157,604.72,603.18,0.33157598]
[1742144016325,0.28086967,604.71,603.18,0.33157598]
[1742144016523,0.33074251,604.7,603.18,0.33157598]
[1742144016719,0.28086967,604.69,603.18,0.33157598]
[1742144016920,0.33075345,604.68,603.18,0.33157598]
[1742144017124,0.28086967,604.67,603.18,0.33157598]
[1742144017828,0.33076439,604.66,603.18,0.33157598]
[1742144018026,0.28086967,604.65,603.18,0.33157598]
[1742144018226,0.33077533,604.64,603.18,0.33157598]
[1742144018425,0.28086967,604.63,603.18,0.33157598]
[1742144018626,0.33078627,604.62,603.18,0.33157598]
[1742144018829,0.28086967,604.61,603.18,0.33157598]
[1742144020623,0.28086967,604.61,603.18,0.86957598]
[1742144021229,0.28030276,604.6,603.18,0.86957598]
[1742144021525,0.28030276,604.61,603.18,0.86957598]
[1742144021721,0.28030276,604.6,603.18,0.86957598]
[1742144021925,0.28030276,604.61,603.18,0.86957598]
[1742144022126,0.28030276,604.6,603.18,0.86957598]
[1742144022325,0.28012499,604.59,603.18,0.86957598]
[1742144022528,0.28012499,604.61,603.18,0.86957598]
[1742144022726,0.28012499,604.6,603.18,0.86957598]
[1742144022926,0.28012499,604.61,603.18,0.86957598]
[1742144023128,0.28012499,604.6,603.18,0.86957598]
[1742144023326,0.28012499,604.61,603.18,0.86957598]
[1742144023628,0.27999262,604.6,603.18,0.86957598]
[1742144023828,0.27999262,604.61,603.18,0.86957598]
[1742144024329,0.27999262,604.61,603.19,0.30439257]
[1742144024528,0.27999262,604.61,603.2,0.33156498]
[1742144024824,0.27999262,604.61,603.21,0.30439082]
[1742144025026,0.27999262,604.61,603.22,0.33155399]
[1742144025228,0.27999262,604.61,603.23,0.30439082]
[1742144025424,0.27999262,604.61,603.24,0.331543]
[1742144028925,0.33078627,604.62,603.24,0.331543]
[1742144029131,0.27959862,604.61,603.24,0.331543]
[1742144033433,0.27959862,604.6,603.24,0.331543]
[1742144033637,0.27959862,604.59,603.24,0.331543]
[1742144033837,0.27959862,604.58,603.24,0.331543]
[1742144034232,0.27959862,604.57,603.24,0.331543]
[1742144034636,0.27959862,604.56,603.24,0.331543]
[1742144034831,0.6104232,604.55,603.24,0.331543]
[1742144035032,0.27959862,604.54,603.24,0.331543]
[1742144035235,0.61043414,604.53,603.24,0.331543]
[1742144035434,0.27959862,604.52,603.24,0.331543]
[1742144035631,0.27959862,604.51,603.24,0.331543]
[1742144035830,0.27959862,604.5,603.24,0.331543]
[1742144036031,0.61045603,604.49,603.24,0.331543]
[1742144036232,0.61046151,604.48,603.24,0.331543]
[1742144036431,0.27959862,604.47,603.24,0.331543]
[1742144036632,0.27959862,604.46,603.24,0.331543]
[1742144036936,0.27959862,604.45,603.24,0.331543]
[1742144037137,0.27959862,604.44,603.24,0.331543]
[1742144037437,0.27959862,604.43,603.24,0.331543]
[1742144037636,0.27959862,604.47,603.24,0.331543]
[1742144037836,0.27959862,604.46,603.24,0.331543]
[1742144038037,0.33086289,604.48,603.24,0.331543]
[1742144038038,0.27959862,604.47,603.24,0.331543]
[1742144038233,0.27959862,604.46,603.24,0.331543]
[1742144038429,0.27959862,604.47,603.24,0.331543]
[1742144038836,0.27959862,604.47,603.18,0.538]
[1742144040640,0.27893085,604.46,603.18,0.538]
[1742144041038,0.27893085,604.47,603.18,0.538]
[1742144041238,0.27893085,604.45,603.18,0.538]
[1742144041441,0.27893085,604.44,603.18,0.538]
[1742144041641,0.27893085,604.47,603.18,0.538]
[1742144041939,0.27893085,604.46,603.18,0.538]
[1742144042338,0.33088478,604.44,603.18,0.538]
[1742144042634,0.27893085,604.43,603.18,0.538]
[1742144043134,0.27893085,604.42,603.18,0.538]
[1742144043333,0.33088478,604.44,603.18,0.538]
[1742144043334,0.27893085,604.41,603.18,0.538]
[1742144043538,0.27893085,604.4,603.18,0.538]
[1742144043737,0.33088478,604.44,603.18,0.538]
[1742144043938,0.27872795,604.43,603.18,0.538]
[1742144044134,0.27872795,604.42,603.18,0.538]
[1742144044435,0.60962915,604.41,603.18,0.538]
[1742144044642,0.27872795,604.4,603.18,0.538]
[1742144044835,0.27872795,604.39,603.18,0.538]
[1742144045038,0.27872795,604.38,603.18,0.538]
[1742144045236,0.27872795,604.37,603.18,0.538]
[1742144045435,0.27872795,604.36,603.18,0.538]
[1742144045639,0.27872795,604.4,603.18,0.538]
[1742144045843,0.27872795,604.39,603.18,0.538]
[1742144046042,0.27872795,604.4,603.18,0.538]
[1742144046239,0.27872795,604.39,603.18,0.538]
[1742144046443,0.27872795,604.38,603.18,0.538]
[1742144046638,0.27872795,604.37,603.18,0.538]
[1742144046841,0.27872795,604.36,603.18,0.538]
[1742144047042,0.27872795,604.4,603.18,0.538]
[1742144047245,0.3309012,604.41,603.18,0.538]
[1742144047439,0.27830674,604.4,603.18,0.538]
[1742144048344,0.27830674,604.4,603.19,0.33157048]
[1742144057242,0.27830674,604.4,603.2,0.30439211]
[1742144057443,0.27830674,604.4,603.21,0.33155949]
[1742144057643,0.27830674,604.4,603.22,0.30439211]
[1742144057946,0.27830674,604.4,603.23,0.33154849]
[1742144058148,0.27896134,604.39,603.24,0.30436647]
[1742144058348,0.27896134,604.4,603.25,0.3315375]
[1742144058547,0.27896134,604.39,603.25,0.3315375]
[1742144058749,0.27896134,604.4,603.25,0.3315375]
[1742144062056,0.27888824,604.39,603.25,0.3315375]
[1742144062351,0.27888824,604.38,603.25,0.3315375]
[1742144062551,0.27888824,604.37,603.25,0.3315375]
[1742144062753,0.27888824,604.36,603.25,0.3315375]
[1742144062953,0.27888824,604.4,603.25,0.3315375]
[1742144063152,0.27888824,604.39,603.25,0.3315375]
[1742144063352,0.27888824,604.4,603.25,0.3315375]
[1742144063555,0.27888824,604.39,603.25,0.3315375]
[1742144063754,0.27876976,604.38,603.25,0.3315375]
[1742144063954,0.27876976,604.4,603.25,0.3315375]
[1742144064153,0.27876976,604.39,603.26,0.546]
[1742144064357,0.27876976,604.4,603.26,0.546]
[1742144065360,0.3309012,604.41,603.26,0.546]
[1742144065552,0.27859708,604.4,603.26,0.546]
[1742144072764,0.27882921,604.39,603.26,0.546]
[1742144072959,0.3309012,604.41,603.26,0.877532]
[1742144072960,0.27882921,604.4,603.26,0.877532]
[1742144074165,0.27882921,604.4,603.27,0.30436922]
[1742144074365,0.27882921,604.4,603.26,0.877532]
[1742144076365,0.3309012,604.41,603.26,0.877532]
[1742144076565,0.27924285,604.4,603.26,0.877532]
[1742144078358,0.27927115,604.39,603.26,0.877532]
[1742144078564,0.27927115,604.38,603.26,0.877532]
[1742144078760,0.27927115,604.4,603.26,0.877532]
[1742144079061,0.27927115,604.39,603.26,0.877532]
[1742144079264,0.27927115,604.4,603.26,0.877532]
[1742144079465,0.27927115,604.39,603.26,0.877532]
[1742144079664,0.27927115,604.4,603.26,0.877532]
[1742144079965,0.27927115,604.39,603.26,0.877532]
[1742144080262,0.27927115,604.38,603.26,0.877532]
[1742144080567,0.27927115,604.37,603.26,0.877532]
[1742144080767,0.27927115,604.4,603.26,0.877532]
[1742144081066,0.27927115,604.39,603.26,0.877532]
[1742144081267,0.27927115,604.38,603.26,0.877532]
[1742144081667,0.27958737,604.37,603.26,0.877532]
[1742144081967,0.27958737,604.36,603.26,0.877532]
[1742144082161,0.27958737,604.35,603.26,0.877532]
[1742144082361,0.27958737,604.34,603.26,0.877532]
[1742144082666,0.27958737,604.33,603.26,0.877532]
[1742144082868,0.27958737,604.4,603.26,0.877532]
[1742144083062,0.27958737,604.39,603.26,0.877532]
[1742144083262,0.27958737,604.4,603.26,0.877532]
[1742144083466,0.27958737,604.39,603.26,0.877532]
[1742144083660,0.27999897,604.38,603.26,0.877532]
[1742144083860,0.27999897,604.37,603.26,0.877532]
[1742144084166,0.27999897,604.36,603.26,0.877532]
[1742144084569,0.27999897,604.35,603.26,0.877532]
[1742144084768,0.27999897,604.4,603.26,0.877532]
[1742144085468,0.27999897,604.4,603.26,0.331532]
[1742144085668,0.27999246,604.39,603.26,0.331532]
[1742144085863,0.27999246,604.4,603.26,0.331532]
[1742144087867,0.27999246,604.4,603.27,0.511]
[1742144088379,0.3309012,604.41,603.27,0.511]
[1742144088565,0.28002249,604.4,603.27,0.511]
[1742144089467,0.33091215,604.39,603.27,0.511]
[1742144089672,0.28002249,604.38,603.27,0.511]
[1742144089871,0.33092311,604.37,603.27,0.511]
[1742144090072,0.28002249,604.36,603.27,0.511]
[1742144092077,0.33093406,604.35,603.27,0.511]
[1742144092276,0.28002249,604.34,603.27,0.511]
[1742144092477,0.33094501,604.33,603.27,0.511]
[1742144092879,0.28015737,604.32,603.27,0.511]
[1742144093078,0.33095596,604.31,603.27,0.511]
[1742144093479,0.28015737,604.3,603.27,0.511]
[1742144093680,0.61111881,604.3,603.27,0.511]
[1742144093880,0.28015737,604.29,603.27,0.511]
[1742144096676,0.28007801,604.28,603.27,0.511]
[1742144096877,0.28007801,604.29,603.27,0.511]
[1742144100478,0.2798068,604.28,603.27,0.511]
[1742144100682,0.2798068,604.29,603.27,0.511]
[1742144100984,0.2798068,604.28,603.27,0.511]
[1742144101185,0.2798068,604.27,603.27,0.511]
[1742144101379,0.2798068,604.29,603.27,0.511]
[1742144102790,0.33097239,604.28,603.27,0.511]
[1742144102991,0.2798068,604.27,603.27,0.511]
[1742144103490,0.33098335,604.26,603.27,0.511]
[1742144103789,0.2798068,604.25,603.27,0.511]
[1742144104689,0.3309943,604.24,603.27,0.511]
[1742144105087,0.2798068,604.23,603.27,0.511]
[1742144105287,0.33100526,604.22,603.27,0.511]
[1742144105486,0.2798068,604.21,603.27,0.511]
[1742144107094,0.33100526,604.22,603.27,0.511]
[1742144107288,0.28047387,604.21,603.27,0.511]
[1742144108794,0.33100526,604.22,603.27,0.511]
[1742144108995,0.28075482,604.21,603.27,0.511]
[1742144116296,0.28035108,604.2,603.27,0.511]
[1742144116496,0.28035108,604.19,603.27,0.511]
[1742144116699,0.28035108,604.18,603.27,0.511]
[1742144117095,0.28035108,604.17,603.27,0.511]
[1742144117297,0.28035108,604.21,603.27,0.511]
[1742144117499,0.28035108,604.2,603.27,0.511]
[1742144117701,0.28035108,604.21,603.27,0.511]
[1742144117997,0.33100526,604.22,603.27,0.511]
[1742144118294,0.28027288,604.21,603.27,0.511]
[1742144121697,0.33100526,604.22,603.27,0.511]
[1742144121902,0.28055827,604.21,603.27,0.511]
[1742144122494,0.33100526,604.22,603.27,0.511]
[1742144122695,0.28063581,604.21,603.27,0.511]
[1742144123498,0.28063581,604.85,603.27,0.511]
[1742144123694,3.45231047,604.86,603.27,0.511]
[1742144123695,0.33067142,604.83,603.27,0.511]
[1742144123899,0.28063581,604.82,603.27,0.511]
[1742144124099,0.33068783,604.8,603.27,0.511]
[1742144124299,0.28063581,604.79,603.27,0.511]
[1742144124500,0.33070423,604.77,603.27,0.511]
[1742144124701,0.28063581,604.76,603.27,0.511]
[1742144124902,0.33072064,604.74,603.27,0.511]
[1742144125102,0.28063581,604.73,603.27,0.511]
[1742144125404,0.33073704,604.71,603.27,0.511]
[1742144125603,0.28063581,604.7,603.27,0.511]
[1742144125803,0.33075345,604.68,603.27,0.511]
[1742144126002,0.28063581,604.67,603.27,0.511]
[1742144126203,0.6114002,604.66,603.27,0.511]
[1742144126404,0.28063581,604.65,603.27,0.511]
[1742144126805,0.61141114,604.64,603.27,0.511]
[1742144127006,0.61148349,604.63,603.27,0.511]
[1742144127206,0.61148896,604.62,603.27,0.511]
[1742144127404,0.61149444,604.61,603.27,0.511]
[1742144127604,0.61149991,604.6,603.27,0.511]
[1742144127906,0.61150538,604.59,603.27,0.511]
[1742144128106,0.61151085,604.58,603.27,0.511]
[1742144128308,0.28070269,604.57,603.27,0.511]
[1742144129203,0.3308191,604.56,603.27,0.511]
[1742144129410,0.28070269,604.55,603.27,0.511]
[1742144129709,0.33083005,604.54,603.27,0.511]
[1742144130009,0.28070269,604.53,603.27,0.511]
[1742144130209,0.33084099,604.52,603.27,0.511]
[1742144130508,0.28070269,604.51,603.27,0.511]
[1742144135111,0.28070269,604.51,603.28,0.33152101]
[1742144139017,0.28070269,604.51,603.28,0.79552101]
[1742144139616,0.33084099,604.52,603.28,0.79552101]
[1742144139812,0.28092493,604.51,603.28,0.79552101]
[1742144141619,0.28095049,604.5,603.28,0.79552101]
[1742144141819,0.28095049,604.51,603.28,0.79552101]
[1742144142019,0.28095049,604.5,603.28,0.33152101]
[1742144142219,0.28095049,604.51,603.28,0.33152101]
[1742144142420,0.28095049,604.5,603.28,0.33152101]
[1742144142621,0.28095049,604.51,603.28,0.33152101]
[1742144142822,0.28095049,604.5,603.28,0.33152101]
[1742144143021,0.28095049,604.51,603.28,0.33152101]
[1742144143222,0.33084099,604.52,603.28,0.33152101]
[1742144143418,0.28089162,604.51,603.28,0.33152101]
[1742144147228,0.28089162,604.51,603.28,0.90952101]
[1742144148630,0.33084099,604.52,603.28,0.90952101]
[1742144148830,0.28067116,604.51,603.28,0.90952101]
[1742144150029,0.33084099,604.52,603.28,0.90952101]
[1742144150335,0.280798,604.51,603.28,0.90952101]
[1742144152435,0.28077559,604.5,603.28,0.90952101]
[1742144152735,0.28077559,604.49,603.28,0.90952101]
[1742144152931,0.28077559,604.51,603.28,0.90952101]
[1742144154130,0.28080575,604.5,603.29,0.30432696]
[1742144154430,0.28080575,604.49,603.3,0.33151002]
[1742144154637,0.28080575,604.48,603.3,0.33151002]
[1742144154837,0.28080575,604.47,603.3,0.33151002]
[1742144155137,1.43274344,605.34,603.3,0.33151002]
[1742144155338,0.33044742,605.24,603.3,0.33151002]
[1742144155534,0.28094054,605.23,603.3,0.33151002]
[1742144155836,0.3304638,605.21,603.3,0.33151002]
[1742144156036,0.28090343,605.2,603.3,0.33151002]
[1742144156237,0.33048018,605.18,603.3,0.33151002]
[1742144156430,0.28090343,605.17,603.3,0.33151002]
[1742144156630,0.28090343,605.16,603.3,0.33151002]
[1742144156835,0.33050203,605.14,603.3,0.33151002]
[1742144157033,0.28090343,605.13,603.3,0.33151002]
[1742144157237,0.33051841,605.11,603.3,0.33151002]
[1742144157437,0.28090343,605.1,603.3,0.33151002]
[1742144157737,0.3305348,605.08,603.3,0.33151002]
[1742144157939,0.28089352,605.07,603.3,0.33151002]
[1742144158139,0.33055119,605.05,603.3,0.33151002]
[1742144158536,0.28089352,605.04,603.3,0.33151002]
[1742144158736,0.33056758,605.02,603.3,0.33151002]
[1742144158942,0.28089352,605.01,603.3,0.33151002]
[1742144159143,0.33058397,604.99,603.3,0.33151002]
[1742144159342,0.28089352,604.98,603.3,0.33151002]
[1742144159537,0.33060037,604.96,603.3,0.33151002]
[1742144159737,0.28089352,604.95,603.3,0.33151002]
[1742144159936,0.3306113,604.94,603.31,0.30433071]
[1742144160140,0.28089352,604.93,603.32,0.33149903]
[1742144160437,0.33062223,604.92,603.32,0.33149903]
[1742144160640,0.28099644,604.91,603.33,0.30432775]
[1742144160842,0.33063316,604.9,603.34,0.33148804]
[1742144161239,0.28099644,604.89,603.34,0.33148804]
[1742144161440,0.33064409,604.88,603.35,0.3043274]
[1742144161637,0.28099644,604.87,603.36,0.33147706]
[1742144161837,0.33065502,604.86,603.36,0.33147706]
[1742144162039,0.28099644,604.85,603.36,0.33147706]
[1742144162243,0.33066596,604.84,603.36,0.33147706]
[1742144162441,0.28099644,604.83,603.36,0.33147706]
[1742144162643,0.33067689,604.82,603.36,0.33147706]
[1742144162838,0.28114666,604.81,603.37,0.30432608]
[1742144163043,0.33068783,604.8,603.38,0.33146607]
[1742144163242,0.28114666,604.79,603.39,0.30431288]
[1742144163445,0.28114666,604.79,603.4,0.33145508]
[1742144163644,0.28114666,604.79,603.41,0.30431288]